fUST/lending_fUST_20251220
["ID","MTS","AMOUNT","RATE_DAILY","PERIOD"]
[399270889,1766224613607,-638.84,0.00054794,120]
[399270890,1766224613644,-1765.27,0.00054794,120]
[399270891,1766224613680,-1047.7,0.00054794,120]
[399270892,1766224613714,-500.0,0.00054794,120]
[399270893,1766224613749,-1746.61,0.00054794,120]
[399270894,1766224613789,-1334.52,0.00054794,120]
[399270895,1766224613825,-500.0,0.00054794,120]
[399270896,1766224613860,-500.0,0.00054794,120]
[399270897,1766224613894,-1862.6,0.00054794,120]
[399270898,1766224613930,-500.0,0.00054794,120]
[399270899,1766224613965,-500.0,0.00054794,120]
[399270900,1766224614003,-503.26543477,0.00054794,30]
[399270901,1766224614039,-500.0,0.00054794,120]
[399270902,1766224614076,-502.60092619,0.00054794,120]
[399270903,1766224614112,-1992.67,0.00054794,120]
[399270904,1766224614147,-500.0,0.00054794,120]
[399270905,1766224614184,-500.0,0.00054794,120]
[399270906,1766224614226,-500.0,0.00054794,120]
[399270907,1766224614265,-500.0,0.00054794,120]
[399270908,1766224614303,-1573.71,0.00054794,120]
[399270909,1766224614527,-1315.85,0.00054794,120]
[399270910,1766224614562,-500.0,0.00054794,120]
[399270911,1766224614597,-500.0,0.00054794,120]
[399270912,1766224614632,-500.0,0.00054794,120]
[399270913,1766224614666,-801.95,0.00054794,120]
[399270914,1766224614700,-500.0,0.00054794,120]
[399270915,1766224614734,-500.0,0.00054794,120]
[399270916,1766224614771,-500.0,0.00054794,120]
[399270917,1766224614806,-553.11,0.00054794,120]
[399270918,1766224614840,-1662.46,0.00054794,120]
[399270919,1766224614874,-500.0,0.00054794,120]
[399270920,1766224614911,-500.0,0.00054794,120]
[399270921,1766224614945,-500.0,0.00054794,120]
[399270922,1766224614980,-1067.2,0.00054794,120]
[399270923,1766224615014,-501.58302238,0.00054794,120]
[399270924,1766224615048,-918.2,0.00054794,120]
[399270925,1766224615083,-500.0,0.00054794,120]
[399270926,1766224615118,-500.0,0.00054794,120]
[399270927,1766224615154,-500.0,0.00054794,120]
[399270928,1766224615191,-689.18,0.00054794,120]
[399270929,1766224615228,-1473.04,0.00054794,30]
[399270930,1766224615265,-500.0,0.00054794,120]
[399270931,1766224615300,-500.0,0.00054794,120]
[399270932,1766224615334,-500.0,0.00054794,120]
[399270933,1766224615368,-500.72890399,0.00054794,120]
[399270934,1766224615402,-500.0,0.00054794,120]
[399270935,1766224615438,-500.0,0.00054794,120]
[399270936,1766224615475,-500.0,0.00054794,120]
[399270937,1766224615514,-500.0,0.00054794,120]
[399270938,1766224615553,-1856.59,0.00054794,120]
[399270939,1766224615590,-500.0,0.00054794,120]
[399270940,1766224615626,-500.0,0.00054794,120]
[399270941,1766224615661,-735.23,0.00054794,120]
[399270942,1766224615695,-500.0,0.00054794,120]
[399270943,1766224615728,-546.2,0.00054794,120]
[399270944,1766224615761,-500.0,0.00054794,120]
[399270945,1766224615792,-500.0,0.00054794,120]
[399270946,1766224615825,-500.0,0.00054794,120]
[399270947,1766224615858,-544.49,0.00054794,120]
[399270948,1766224615891,-500.0,0.00054794,120]
[399270949,1766224615925,-856.69,0.00054794,120]
[399270950,1766224615960,-500.0,0.00054794,120]
[399270951,1766224615995,-924.16,0.00054794,120]
[399270952,1766224616030,-500.0,0.00054794,120]
[399270953,1766224616063,-502.64838589,0.00054794,120]
[399270954,1766224616097,-500.0,0.00054794,120]
[399270955,1766224616131,-587.04340731,0.00054794,120]
[399270956,1766224616164,-500.0,0.00054794,120]
[399270957,1766224616198,-500.0,0.00054794,120]
[399270958,1766224616232,-502.52196668,0.00054794,120]
[399270959,1766224616266,-565.46,0.00054794,120]
[399270960,1766224616301,-349.71603773,0.00054794,120]
[399270961,1766224616336,-1642.57,0.00054794,120]
[399270962,1766224616370,-500.0,0.00054794,120]
[399270963,1766224616404,-401.94416654,0.00054794,120]
[399270964,1766224616439,-1528.59,0.00054794,120]
[399270965,1766224616473,-500.0,0.00054794,120]
[399270966,1766224616508,-1600.32,0.00054794,120]
[399270967,1766224616541,-501.03641383,0.00054794,120]
[399270968,1766224616575,-701.49,0.00054794,120]
[399270969,1766224616608,-895.04,0.00054794,120]
[399270970,1766224616643,-521.34,0.00054794,120]
[399270971,1766224616677,-2839.98,0.00054794,120]
[399270972,1766224616710,-500.0,0.00054794,120]
[399270973,1766224616744,-2915.42,0.00054794,120]
[399270974,1766224616777,-1225.9,0.00054794,120]
[399270975,1766224616811,-500.0,0.00054794,120]
[399270976,1766224616843,-500.0,0.00054794,120]
[399270977,1766224616876,-500.0,0.00054794,120]
[399270978,1766224616911,-688.73,0.00054794,120]
[399270979,1766224616945,-638.05,0.00054794,120]
[399270980,1766224616979,-500.0,0.00054794,120]
[399270981,1766224617013,-606.65555082,0.00054794,120]
[399270982,1766224617049,-1539.41,0.00054794,120]
[399270983,1766224617083,-500.0,0.00054794,120]
[399270984,1766224617117,-1875.49,0.00054794,120]
[399270985,1766224617154,-4965.14,0.00054794,120]
[399270986,1766224617191,-698.55,0.00054794,120]
[399270987,1766224617231,-10535.22,0.00054794,120]
[399270988,1766224617268,-1539.06,0.00054794,120]
[399270989,1766224617304,-1574.56,0.00054794,120]
[399270990,1766224617339,-1510.22,0.00054794,120]
[399270991,1766224617374,-295.82854939,0.00054794,120]
[399270992,1766224617408,-525.71519374,0.00054794,120]
[399270993,1766224617443,-1737.9,0.00054794,120]
[399270994,1766224617478,-500.0,0.00054794,120]
[399270995,1766224617512,-502.84391361,0.00054794,120]
[399270996,1766224617545,-500.0,0.00054794,120]
[399270997,1766224617578,-500.0,0.00054794,120]
[399270998,1766224617610,-642.83,0.00054794,120]
[399270999,1766224617643,-502.58538262,0.00054794,120]
[399271000,1766224617676,-500.0,0.00054794,120]
[399271001,1766224617709,-500.0,0.00054794,120]
[399271002,1766224617742,-599.09,0.00054794,120]
[399271003,1766224617775,-1734.45,0.00054794,120]
[399271004,1766224617930,-3946.07,0.00054794,120]
[399271005,1766224618006,-500.0,0.00054794,120]
[399271006,1766224618041,-500.0,0.00054794,120]
[399271007,1766224618076,-649.39,0.00054794,120]
[399271008,1766224618110,-1546.32,0.00054794,120]
[399271009,1766224618144,-1273.44,0.00054794,120]
[399271010,1766224618179,-500.0,0.00054794,120]
[399271011,1766224618214,-1037.51,0.00054794,120]
[399271012,1766224618248,-2643.89,0.00054794,120]
[399271013,1766224618283,-500.0,0.00054794,120]
[399271014,1766224618316,-1020.57,0.00054794,120]
[399271015,1766224618349,-542.81,0.00054794,120]
[399271016,1766224618383,-500.0,0.00054794,120]
[399271017,1766224618418,-500.0,0.00054794,120]
[399271018,1766224618453,-3245.67,0.00054794,120]
[399271019,1766224618487,-500.0,0.00054794,120]
[399271020,1766224618520,-500.0,0.00054794,120]
[399271021,1766224618553,-595.52,0.00054794,120]
[399271022,1766224618587,-1297.61,0.00054794,120]
[399271023,1766224618621,-500.0,0.00054794,120]
[399271024,1766224618655,-570.69404567,0.00054794,120]
[399271025,1766224618689,-2698.45,0.00054794,30]
[399271026,1766224618723,-833.33,0.00054794,120]
[399271027,1766224618757,-500.0,0.00054794,120]
[399271028,1766224618789,-1067.31,0.00054794,120]
[399271029,1766224618822,-1695.13,0.00054794,120]
[399271030,1766224618858,-500.0,0.00054794,120]
[399271031,1766224618894,-500.0,0.00054794,120]
[399271032,1766224618930,-1062.8,0.00054794,120]
[399271033,1766224618966,-500.0,0.00054794,120]
[399271034,1766224619001,-1015.34,0.00054794,120]
[399271035,1766224619036,-418.117269,0.00054794,120]
[399271036,1766224619071,-500.72356638,0.00054794,120]
[399271037,1766224619107,-500.51800499,0.00054794,120]
[399271038,1766224619141,-500.0,0.00054794,120]
[399271039,1766224619178,-500.0,0.00054794,120]
[399271040,1766224619215,-500.0,0.00054794,120]
[399271041,1766224619250,-1880.2,0.00054794,120]
[399271042,1766224619286,-2716.93,0.00054794,120]
[399271043,1766224619322,-1315.09,0.00054794,120]
[399271044,1766224619356,-500.0,0.00054794,120]
[399271045,1766224619391,-658.83,0.00054794,120]
[399271046,1766224619425,-761.82,0.00054794,120]
[399271047,1766224619463,-500.0,0.00054794,120]
[399271048,1766224619500,-592.64,0.00054794,120]
[399271049,1766224619534,-500.0,0.00054794,120]
[399271050,1766224619570,-500.0,0.00054794,120]
[399271051,1766224619605,-2710.7,0.00054794,120]
[399271052,1766224619639,-1235.97,0.00054794,120]
[399271053,1766224619674,-2116.56,0.00054794,120]
[399271054,1766224619709,-2706.64,0.00054794,120]
[399271055,1766224619743,-500.0,0.00054794,120]
[399271056,1766224619776,-1664.46,0.00054794,120]
[399271057,1766224619811,-877.43,0.00054794,120]
[399271058,1766224619844,-500.0,0.00054794,120]
[399271059,1766224619879,-1532.18,0.00054794,120]
[399271060,1766224619913,-1127.5,0.00054794,120]
[399271061,1766224619949,-500.46723336,0.00054794,120]
[399271062,1766224619984,-1421.09,0.00054794,120]
[399271063,1766224620022,-862.44,0.00054794,120]
[399271064,1766224620060,-2419.08,0.00054794,120]
[399271065,1766224620101,-500.0,0.00054794,120]
[399271066,1766224620144,-1075.05,0.00054794,120]
[399271067,1766224620187,-1689.19,0.00054794,120]
[399271068,1766224620229,-970.66,0.00054794,120]
[399271069,1766224620271,-500.0,0.00054794,120]
[399271070,1766224620313,-3967.2,0.00054794,120]
[399271071,1766224620354,-3996.91,0.00054794,120]
[399271072,1766224620394,-1785.46,0.00054794,120]
[399271073,1766224620434,-2030.39,0.00054794,120]
[399271074,1766224620481,-501.46968595,0.00054794,120]
[399271075,1766224620518,-500.0,0.00054794,120]
[399271076,1766224620555,-500.62280271,0.00054794,120]
[399271077,1766224620590,-501.57816592,0.00054794,120]
[399271078,1766224620627,-1860.91,0.00054794,120]
[399271079,1766224620662,-1064.37,0.00054794,120]
[399271080,1766224620696,-505.8,0.00054794,120]
[399271081,1766224620730,-500.0,0.00054794,120]
[399271082,1766224620764,-500.0,0.00054794,120]
[399271083,1766224620798,-1269.97,0.00054794,120]
[399271084,1766224620831,-168.09159179,0.00054794,120]
[399271085,1766224620864,-500.0,0.00054794,120]
[399271086,1766224620897,-1583.57,0.00054794,120]
[399271087,1766224620932,-906.61,0.00054794,120]
[399271088,1766224620965,-2297.55,0.00054794,120]
[399271089,1766224621000,-4613.69,0.00054794,120]
[399271090,1766224621036,-500.0,0.00054794,120]
[399271091,1766224621070,-500.0,0.00054794,120]
[399271092,1766224621105,-874.33,0.00054794,120]
[399271093,1766224621140,-500.0,0.00054794,120]
[399271094,1766224621176,-500.0,0.00054794,120]
[399271095,1766224621213,-2653.19,0.00054794,120]
[399271096,1766224621257,-500.0,0.00054794,120]
[399271097,1766224621302,-500.0,0.00054794,120]
[399271098,1766224621344,-771.2,0.00054794,120]
[399271099,1766224621380,-500.0,0.00054794,120]
[399271100,1766224621586,-2487.68,0.00054794,120]
[399271101,1766224621624,-548.14,0.00054794,120]
[399271102,1766224621661,-1297.46,0.00054794,120]
[399271103,1766224621696,-500.0,0.00054794,120]
[399271104,1766224621733,-914.24,0.00054794,120]
[399271105,1766224621766,-1198.41,0.00054794,120]
[399271106,1766224621802,-2156.0,0.00054794,120]
[399271107,1766224621838,-500.0,0.00054794,120]
[399271108,1766224621874,-500.0,0.00054794,120]
[399271109,1766224621911,-1858.76,0.00054794,120]
[399271110,1766224621947,-500.0,0.00054794,120]
[399271111,1766224621984,-500.0,0.00054794,120]
[399271112,1766224622024,-1008.35,0.00054794,120]
[399271113,1766224622063,-500.0,0.00054794,120]
[399271114,1766224622100,-500.0,0.00054794,120]
[399271115,1766224622138,-1125.47,0.00054794,120]
[399271116,1766224622178,-1582.72,0.00054794,120]
[399271117,1766224622216,-500.0,0.00054794,120]
[399271118,1766224622257,-748.65,0.00054794,120]
[399271119,1766224622298,-500.0,0.00054794,120]
[399271120,1766224622335,-524.58,0.00054794,120]
[399271121,1766224622374,-1422.38,0.00054794,120]
[399271122,1766224622412,-618.06,0.00054794,120]
[399271123,1766224622448,-1799.07,0.00054794,120]
[399271124,1766224622485,-543.86,0.00054794,120]
[399271125,1766224622522,-3091.69,0.00054794,120]
[399271126,1766224622558,-500.0,0.00054794,120]
[399271127,1766224622592,-2973.17,0.00054794,120]
[399271128,1766224622626,-1427.24,0.00054794,120]
[399271129,1766224622660,-305.22812114,0.00054794,120]
[399271130,1766224622697,-2291.55,0.00054794,120]
[399271131,1766224622732,-500.0,0.00054794,120]
[399271132,1766224622764,-500.0,0.00054794,120]
[399271133,1766224622797,-528.69897027,0.00054794,120]
[399271134,1766224622832,-626.87,0.00054794,120]
[399271135,1766224622867,-1073.62,0.00054794,120]
[399271136,1766224622902,-502.17200976,0.00054794,120]
[399271137,1766224622936,-638.43252645,0.00054794,120]
[399271138,1766224622970,-1000.0,0.00054794,120]
[399271139,1766224623003,-1049.85,0.00054794,120]
[399271140,1766224623040,-500.0,0.00054794,120]
[399271141,1766224623075,-500.0,0.00054794,120]
[399271142,1766224623109,-500.0,0.00054794,120]
[399271143,1766224623144,-500.0,0.00054794,120]
[399271144,1766224623179,-500.0,0.00054794,120]
[399271145,1766224623215,-500.0,0.00054794,120]
[399271146,1766224623252,-363.17824223,0.00054794,120]
[399271147,1766224623288,-905.55,0.00054794,120]
[399271148,1766224623324,-500.0,0.00054794,120]
[399271149,1766224623359,-500.71299888,0.00054794,120]
[399271150,1766224623396,-500.0,0.00054794,120]
[399271151,1766224623433,-2751.88,0.00054794,120]
[399271152,1766224623472,-1256.4,0.00054794,120]
[399271153,1766224623511,-1449.5,0.00054794,120]
[399271154,1766224623549,-332.65,0.00054794,120]
[399271155,1766224623588,-1358.74,0.00054794,120]
[399271156,1766224623628,-2745.17,0.00054794,120]
[399271157,1766224623665,-500.0,0.00054794,120]
[399271158,1766224623701,-500.0,0.00054794,120]
[399271159,1766224623738,-1912.62,0.00054794,120]
[399271160,1766224623774,-1608.77,0.00054794,120]
[399271161,1766224623808,-500.9323826,0.00054794,120]
[399271162,1766224623843,-500.0,0.00054794,120]
[399271163,1766224623879,-2137.07,0.00054794,120]
[399271164,1766224623916,-1030.31,0.00054794,120]
[399271165,1766224623958,-500.0,0.00054794,120]
[399271166,1766224623999,-500.0,0.00054794,120]
[399271167,1766224624044,-500.0,0.00054794,120]
[399271168,1766224624085,-1547.5,0.00054794,120]
[399271169,1766224624126,-1874.76,0.00054794,120]
[399271170,1766224624169,-612.76,0.00054794,120]
[399271171,1766224624211,-500.0,0.00054794,120]
[399271172,1766224624255,-397.31262465,0.00054794,120]
[399271173,1766224624296,-500.0,0.00054794,120]
[399271174,1766224624339,-1125.82,0.00054794,120]
[399271175,1766224624380,-500.0,0.00054794,120]
[399271176,1766224624421,-671.07,0.00054794,120]
[399271177,1766224624463,-728.02,0.00054794,120]
[399271178,1766224624502,-2090.75,0.00054794,120]
[399271179,1766224624543,-557.69536791,0.00054794,120]
[399271180,1766224624581,-500.0,0.00054794,120]
[399271181,1766224624617,-500.0,0.00054794,120]
[399271182,1766224624654,-500.0,0.00054794,120]
[399271183,1766224624692,-500.0,0.00054794,120]
[399271184,1766224624729,-1469.04,0.00054794,120]
[399271185,1766224624764,-581.71111001,0.00054794,120]
[399271186,1766224624798,-563.69,0.00054794,120]
[399271187,1766224624832,-500.0,0.00054794,120]
[399271188,1766224624868,-758.83,0.00054794,120]
[399271189,1766224624907,-1539.27,0.00054794,60]
[399271190,1766224624941,-1176.57,0.00054794,120]
[399271191,1766224624977,-500.0,0.00054794,120]
[399271192,1766224625012,-501.13489748,0.00054794,120]
[399271193,1766224625048,-500.0,0.00054794,120]
[399271194,1766224625083,-537.31,0.00054794,120]
[399271195,1766224625120,-1063.59,0.00054794,120]
[399271196,1766224625310,-500.0,0.00054794,120]
[399271197,1766224625354,-2422.7,0.00054794,120]
[399271198,1766224625394,-2188.8,0.00054794,120]
[399271199,1766224625436,-561.05781224,0.00054794,120]
[399271200,1766224625476,-1083.37,0.00054794,120]
[399271201,1766224625515,-2681.42,0.00054794,120]
[399271202,1766224625554,-500.0,0.00054794,120]
[399271203,1766224625591,-903.36,0.00054794,120]
[399271204,1766224625628,-1646.16,0.00054794,120]
[399271205,1766224625665,-2528.18,0.00054794,120]
[399271206,1766224625703,-500.0,0.00054794,120]
[399271207,1766224625741,-709.95,0.00054794,120]
[399271208,1766224625778,-472.51339004,0.00054794,120]
[399271209,1766224625827,-500.0,0.00054794,120]
[399271210,1766224625868,-2813.65,0.00054794,120]
[399271211,1766224625905,-500.0,0.00054794,120]
[399271212,1766224625942,-3174.81,0.00054794,120]
[399271213,1766224625977,-676.08,0.00054794,120]
[399271214,1766224626017,-500.0,0.00054794,120]
[399271215,1766224626054,-1447.4,0.00054794,120]
[399271216,1766224626091,-569.53,0.00054794,120]
[399271217,1766224626130,-1662.03,0.00054794,120]
[399271218,1766224626169,-500.0,0.00054794,120]
[399271219,1766224626208,-500.0,0.00054795,120]
[399271220,1766224626246,-151.0,0.00054795,120]
[399271221,1766224626283,-151.0,0.00054795,120]
[399271222,1766224626321,-151.0,0.00054795,120]
[399271223,1766224626358,-151.0,0.00054795,120]
[399271224,1766224626395,-189.594931,0.00054795,120]
[399271225,1766224626432,-479.388314,0.00054795,90]
[399271226,1766224626467,-479.388314,0.00054795,90]
[399271227,1766224626504,-479.388314,0.00054795,90]
[399271228,1766224626539,-479.388314,0.00054795,90]
[399271229,1766224626574,-479.388314,0.00054795,90]
[399271230,1766224626608,-479.388314,0.00054795,90]
[399271231,1766224626643,-479.388314,0.00054795,90]
[399271232,1766224626678,-479.388314,0.00054795,90]
[399271233,1766224626714,-479.388314,0.00054795,90]
[399271234,1766224626748,-479.388314,0.00054795,90]
[399271235,1766224626783,-479.388314,0.00054795,90]
[399271236,1766224626819,-479.388314,0.00054795,90]
[399271237,1766224626855,-479.388314,0.00054795,90]
[399271238,1766224626890,-479.388314,0.00054795,90]
[399271239,1766224626926,-479.388314,0.00054795,90]
[399271240,1766224626963,-479.388314,0.00054795,90]
[399271241,1766224626999,-479.388314,0.00054795,90]
[399271242,1766224627036,-479.388314,0.00054795,90]
[399271243,1766224627072,-479.388314,0.00054795,90]
[399271244,1766224627109,-479.388319,0.00054795,90]
[399271245,1766224627148,-404.553391,0.00054795,120]
[399271246,1766224627193,-404.553391,0.00054795,120]
[399271247,1766224627236,-404.553391,0.00054795,120]
[399271248,1766224627277,-404.553391,0.00054795,120]
[399271249,1766224627314,-404.553391,0.00054795,120]
[399271250,1766224627352,-404.553391,0.00054795,120]
[399271251,1766224627389,-404.553391,0.00054795,120]
[399271252,1766224627425,-404.553391,0.00054795,120]
[399271253,1766224627461,-404.553391,0.00054795,120]
[399271254,1766224627499,-404.553391,0.00054795,120]
[399271255,1766224627536,-404.553391,0.00054795,120]
[399271256,1766224627571,-404.553391,0.00054795,120]
[399271257,1766224627606,-404.553391,0.00054795,120]
[399271258,1766224627641,-404.553391,0.00054795,120]
[399271259,1766224627676,-404.553391,0.00054795,120]
[399271260,1766224627711,-404.553391,0.00054795,120]
[399271261,1766224627747,-404.553391,0.00054795,120]
[399271262,1766224627782,-404.553391,0.00054795,120]
[399271263,1766224627816,-404.553391,0.00054795,120]
[399271264,1766224627849,-404.55339,0.00054795,120]
[399271265,1766224628354,500.0,0.00054794,120]
[399271266,1766224628676,500.0,0.00054794,120]
[399271267,1766224629174,151.0,0.00032877,31]
[399271268,1766224629251,185.29314,0.00032877,31]
[399271269,1766224629352,500.0,0.00054794,60]
[399271270,1766224629411,1000.0,0.00027515,30]
[399271271,1766224629517,492.0,0.00027515,30]
[399271272,1766224629824,1000.0,0.00030267,30]
[399271273,1766224629867,2000.0,0.000153,120]
[399271274,1766224630041,791.0,0.00030267,30]
[399271275,1766224630092,1384.97,0.00054794,120]
[399271276,1766224630134,1000.0,0.00033294,30]
[399271277,1766224630205,1000.0,0.00033294,30]
[399271278,1766224697604,-305.1314431,0.00032713,30]
[399271279,1766224697638,-500.0,0.00036024,30]
[399271280,1766224697675,-1000.0,0.00036623,30]
[399271281,1766224697710,-1000.0,0.00036623,30]
[399271282,1766224697743,-579.0,0.00036623,30]
[399271283,1766224697774,-500.0,0.00038204,30]
[399271284,1766224697807,-4141.26,0.00038356,120]
[399271285,1766224697839,-1000.0,0.00040285,60]
[399271286,1766224697873,-1000.0,0.00040285,60]
[399271287,1766224697905,-1000.0,0.00040285,60]
[399271288,1766224697937,-151.0,0.00041096,120]
[399271289,1766224697971,-151.0,0.00041096,120]
[399271290,1766224698002,-151.0,0.00041096,120]
[399271291,1766224698035,-168.821067,0.00041096,120]
[399271292,1766224698073,-500.0,0.00043687,30]
[399271293,1766224698106,-4141.26,0.00043835,120]
[399271294,1766224698141,-1000.0,0.00044314,60]
[399271295,1766224698176,-1000.0,0.00044314,60]
[399271296,1766224698214,-1000.0,0.00044314,60]
[399271297,1766224698251,-715.0,0.00044314,60]
[399271298,1766224698284,-500.0,0.00046361,60]
[399271299,1766224698318,-1000.0,0.00048745,120]
[399271300,1766224698352,-950.0,0.00048745,120]
[399271301,1766224698391,-4141.26,0.00049315,120]
[399271302,1766224698426,-497.8309919,0.00049999,120]
[399271303,1766224698460,-500.0,0.00049999,120]
[399271304,1766224698495,-500.0,0.00049999,120]
[399271305,1766224698528,-223.63514193,0.00049999,120]
[399271306,1766224698561,-500.0,0.00049999,120]
[399271307,1766224698592,-500.0,0.00049999,120]
[399271308,1766224698624,-435.13278654,0.00049999,120]
[399271309,1766224698656,-228.81850652,0.00049999,120]
[399271310,1766224698690,-213.16655126,0.00049999,120]
[399271311,1766224698722,-362.85689363,0.00049999,120]
[399271312,1766224698753,-500.0,0.00049999,120]
[399271313,1766224698784,-500.0,0.00049999,31]
[399271314,1766224698816,-356.68740295,0.00049999,31]
[399271315,1766224698847,-846.86931829,0.00052706,120]
[399271316,1766224698878,-213.0,0.00053,120]
[399271317,1766224698909,-153.0,0.00054247,30]
[399271318,1766224698943,-153.0,0.00054247,30]
[399271319,1766224698976,-500.0,0.00054794,120]
[399271320,1766224699170,-602.70829582,0.00054794,120]
[399271321,1766224699206,-1267.37,0.00054794,120]
[399271322,1766224699242,-4141.26,0.00054794,120]
[399271323,1766224699274,-1954.53,0.00054794,120]
[399271324,1766224699304,-511.07533159,0.00054794,120]
[399271325,1766224699335,-500.0,0.00054794,120]
[399271326,1766224699366,-1935.48,0.00054794,120]
[399271327,1766224699397,-1851.37,0.00054794,120]
[399271328,1766224699428,-594.65629167,0.00054794,120]
[399271329,1766224699458,-500.0,0.00054794,120]
[399271330,1766224699491,-1984.59,0.00054794,120]
[399271331,1766224699523,-2201.82,0.00054794,120]
[399271332,1766224699553,-1365.69,0.00054794,120]
[399271333,1766224699583,-500.0,0.00054794,120]
[399271334,1766224699614,-1796.64,0.00054794,120]
[399271335,1766224699645,-500.0,0.00054794,120]
[399271336,1766224699675,-600.95,0.00054794,120]
[399271337,1766224699706,-500.0,0.00054794,30]
[399271338,1766224699736,-1711.07,0.00054794,120]
[399271339,1766224699767,-1000.0,0.00054794,120]
[399271340,1766224699799,-2066.17,0.00054794,120]
[399271341,1766224699832,-500.0,0.00054794,120]
[399271342,1766224699861,-500.0,0.00054794,120]
[399271343,1766224699892,-500.0,0.00054794,120]
[399271344,1766224699923,-978.46,0.00054794,120]
[399271345,1766224699953,-876.15,0.00054794,120]
[399271346,1766224699985,-500.0,0.00054794,120]
[399271347,1766224700017,-1243.4,0.00054794,120]
[399271348,1766224700049,-1112.22,0.00054794,120]
[399271349,1766224700081,-1585.47,0.00054794,120]
[399271350,1766224700112,-516.5,0.00054794,120]
[399271351,1766224700142,-500.0,0.00054794,120]
[399271352,1766224700173,-466.04901028,0.00054794,120]
[399271353,1766224700205,-868.83,0.00054794,120]
[399271354,1766224700236,-500.0,0.00054794,120]
[399271355,1766224700268,-1160.1,0.00054794,120]
[399271356,1766224700300,-500.0,0.00054794,120]
[399271357,1766224700330,-875.33,0.00054794,120]
[399271358,1766224700361,-960.25,0.00054794,120]
[399271359,1766224700391,-616.4,0.00054794,120]
[399271360,1766224700421,-592.31,0.00054794,120]
[399271361,1766224700452,-500.0,0.00054794,120]
[399271362,1766224700483,-500.0,0.00054794,120]
[399271363,1766224700515,-500.0,0.00054794,120]
[399271364,1766224700560,-500.0,0.00054794,120]
[399271365,1766224700594,-500.0,0.00054794,120]
[399271366,1766224700627,-500.0,0.00054794,120]
[399271367,1766224700661,-785.42,0.00054794,120]
[399271368,1766224700693,-500.0,0.00054794,120]
[399271369,1766224700726,-1000.0,0.00054794,120]
[399271370,1766224700758,-286.05164962,0.00054794,120]
[399271371,1766224700791,-2196.07,0.00054794,120]
[399271372,1766224700824,-1496.01,0.00054794,120]
[399271373,1766224700856,-1078.57,0.00054794,120]
[399271374,1766224700887,-1080.26,0.00054794,120]
[399271375,1766224700918,-500.0,0.00054794,120]
[399271376,1766224700949,-500.0,0.00054794,120]
[399271377,1766224700979,-874.99,0.00054794,120]
[399271378,1766224701012,-500.0,0.00054794,120]
[399271379,1766224701044,-2637.22,0.00054794,120]
[399271380,1766224701076,-295.64185583,0.00054794,120]
[399271381,1766224701110,-2962.87,0.00054794,120]
[399271382,1766224701143,-1765.67,0.00054794,120]
[399271383,1766224701176,-500.0,0.00054794,120]
[399271384,1766224701210,-413.38464873,0.00054794,120]
[399271385,1766224701244,-500.0,0.00054794,120]
[399271386,1766224701281,-1389.11,0.00054794,120]
[399271387,1766224701317,-500.0,0.00054794,120]
[399271388,1766224701351,-953.97,0.00054794,120]